[Event "Portuguese-ch U14-20 2022"]
[Site "Fatima"]
[Date "2022.04.10"]
[Round "1.10"]
[White "Bastiao, Tomas"]
[Black "Sismeiro, Miguel"]
[Result "0-1"]
[ECO "D55"]
[WhiteElo "1664"]
[BlackElo "2201"]
[Annotator "RC"]
[PlyCount "142"]
[EventDate "2022.04.10"]
[EventType "swiss"]
[EventCountry "POR"]
[SourceTitle "playchess.com"]
[Source "ChessBase"]
[SourceQuality "1"]
[TimeControl "5400+30"]

1. c4 {[%emt 0:00:03]} Nf6 {[%emt 0:00:14]} 2. Nc3 {[%emt 0:00:08]} e6 {[%emt 0:00:23]} 3. Nf3 {[%emt 0:00:39]} d5 {[%emt 0:02:51]} 4. d4 {[%emt 0:00:01]} Be7 {[%emt 0:00:09]} 5. Bg5 {[%emt 0:01:19]} O-O {[%emt 0:00:52]} 6. e3 {[%emt 0:00:14]} h6 {[%emt 0:00:05]} 7. Bxf6 {[%emt 0:00:40]} Bxf6 {[%emt 0:00:06]} 8. Be2 {[%emt 0:01:38]} dxc4 {[%emt 0:02:44]} 9. Bxc4 {[%emt 0:00:08]} c5 10. Ne4 {[%emt 0:05:58]} Nd7 {[%emt 0:15:41]} 11. O-O {[%emt 0:06:02]} Be7 {[%emt 0:04:11]} 12. dxc5 {[%emt 0:26:45]} Nxc5 {[%emt 0:00:56]} 13. Nxc5 {[%emt 0:00:40]} Bxc5 {[%emt 0:00:06]} 14. Qxd8 {[%emt 0:00:03]} Rxd8 {[%emt 0:00:12]} 15. Rfd1 {[%emt 0:00:32]} Bd7 {[%emt 0:00:32]} 16. Rd3 {[%emt 0:15:33]} Kf8 {[%emt 0:06:50]} 17. Rad1 {[%emt 0:04:10]} Ke7 {[%emt 0:00:49]} 18. Kf1 {[%emt 0:03:50]} b5 {[%emt 0:07:59]} 19. Ne5 {[%emt 0:02:07]} Be8 {[%emt 0:00:14]} 20. Rxd8 {[%emt 0:02:22]} Rxd8 {[%emt 0:00:48]} 21. Rxd8 {[%emt 0:00:02]} Kxd8 {[%emt 0:00:06]} 22. Bb3 {[%emt 0:02:27]} Bd6 {[%emt 0:01:38]} 23. Nf3 {[%emt 0:00:31]} Kc7 {[%emt 0:03:11]} 24. Ke2 {[%emt 0:00:22]} Kb6 {[%emt 0:01:08]} 25. Bc2 {[%emt 0:04:29]} a5 {[%emt 0:01:50]} 26. a3 {[%emt 0:02:13]} Bc6 {[%emt 0:04:10]} 27. h3 {[%emt 0:00:48]} Be7 {[%emt 0:00:54]} 28. g3 {[%emt 0:06:04]} Bf6 {[%emt 0:00:27]} 29. Nd4 {[%emt 0:00:03]} Bd7 {[%emt 0:01:53]} 30. h4 {[%emt 0:01:55]} a4 {[%emt 0:01:13]} 31. Kd2 {[%emt 0:00:41]} Kc5 {[%emt 0:00:50]} 32. b4+ {[%emt 0:04:09]} axb3 {[%emt 0:01:48]} 33. Nxb3+ {[%emt 0:00:02]} Kb6 {[%emt 0:00:20]} 34. Kc1 {[%emt 0:00:44]} Bc3 {[%emt 0:01:50]} 35. Nd2 {[%emt 0:00:40]} Bc6 {[%emt 0:01:34]} 36. Bb3 {[%emt 0:01:20]} Kc5 {[%emt 0:01:19]} 37. Kc2 {[%emt 0:00:26]} Ba5 {[%emt 0:00:13]} 38. Ba2 {[%emt 0:01:05]} Kd6 {[%emt 0:00:26]} 39. Kd3 {[%emt 0:00:16]} Ke5 {[%emt 0:04:37]} 40. a4 {[%emt 0:01:14]} Kf5 {[%emt 0:02:10]} 41. axb5 {[%emt 0:00:31]} Bxb5+ {[%emt 0:00:07]} 42. Bc4 {[%emt 0:00:25]} Bd7 {[%emt 0:03:32]} 43. Nb3 {[%emt 0:02:02]} Bc7 {[%emt 0:02:20]} 44. Kd2 {[%emt 0:01:06]} Bd6 {[%emt 0:01:29]} 45. Be2 {[%emt 0:00:02]} Bb4+ {[%emt 0:00:06]} 46. Kd1 {[%emt 0:01:19]} Ba4 {[%emt 0:01:31]} 47. Bc4 {[%emt 0:00:42]} Kg4 {[%emt 0:00:11]} 48. Ke2 {[%emt 0:00:21]} Kh3 {[%emt 0:00:13]} 49. Nd4 {[%emt 0:00:34]} Bd7 {[%emt 0:02:14]} 50. Bb5 {[%emt 0:01:06]} Bc8 {[%emt 0:00:41]} 51. Bc6 {[%emt 0:01:16]} e5 {[%emt 0:00:55]} 52. Nf3 {[%emt 0:01:21]} Ba6+ {[%emt 0:00:11]} 53. Kd1 {[%emt 0:00:02]} Kg2 {[%emt 0:02:25]} 54. Nxe5+ {[%emt 0:00:45]} Kxf2 {[%emt 0:00:05]} 55. Nxf7 {[%emt 0:00:39]} Kxe3 {[%emt 0:00:12]} 56. Nd8 {[%emt 0:03:05]} Bc8 {[%emt 0:03:10]} 57. Bd5 {[%emt 0:00:33]} Kf2 {[%emt 0:00:32]} 58. Ne6 {[%emt 0:00:18]} Bc3 {[%emt 0:00:08]} 59. Nc5 {[%emt 0:00:55]} Bd4 {[%emt 0:01:18]} 60. Ne4+ {[%emt 0:00:01]} Ke3 {[%emt 0:00:13]} 61. Nd6 {[%emt 0:00:44]} Bh3 {[%emt 0:00:44]} 62. Nb5 {[%emt 0:00:48]} Be5 {[%emt 0:00:10]} 63. Bf7 {[%emt 0:00:30]} Bg4+ {[%emt 0:00:45]} 64. Kc2 {[%emt 0:00:18]} h5 {[%emt 0:00:08]} 65. Na3 {[%emt 0:00:43]} Bxg3 {[%emt 0:00:14]} 66. Nc4+ {[%emt 0:00:04]} Kd4 {[%emt 0:00:26]} 67. Nb6 {[%emt 0:00:48]} Bxh4 {[%emt 0:00:09]} 68. Bg6 {[%emt 0:00:06]} Bg3 {[%emt 0:00:24]} 69. Na4 {[%emt 0:00:36]} h4 {[%emt 0:00:14]} 70. Nc3 {[%emt 0:00:04]} h3 {[%emt 0:00:21]} 71. Kd2 Ke5 0-1

[Event "Portuguese-ch U14-20 2022"]
[Site "Fatima"]
[Date "2022.04.10"]
[Round "1.11"]
[White "Simoes, Miguel Patricio"]
[Black "Soares, Luis Francisco Almei"]
[Result "1-0"]
[ECO "B33"]
[WhiteElo "2001"]
[BlackElo "2000"]
[Annotator "RC"]
[PlyCount "81"]
[EventDate "2022.04.10"]
[EventType "swiss"]
[EventCountry "POR"]
[SourceTitle "playchess.com"]
[Source "ChessBase"]
[SourceQuality "1"]
[TimeControl "5400+30"]

1. e4 {[%emt 0:00:14]} c5 {[%emt 0:00:04]} 2. Nf3 {[%emt 0:00:37]} Nc6 {[%emt 0:00:10]} 3. d4 {[%emt 0:00:34]} cxd4 {[%emt 0:00:12]} 4. Nxd4 {[%emt 0:00:03]} e6 {[%emt 0:00:15]} 5. Nc3 {[%emt 0:02:46]} Nf6 {[%emt 0:00:30]} 6. Ndb5 {[%emt 0:05:19]} d6 {[%emt 0:00:28]} 7. Bf4 {[%emt 0:00:56]} e5 {[%emt 0:00:39]} 8. Bg5 {[%emt 0:00:23]} a6 {[%emt 0:00:24]} 9. Na3 {[%emt 0:00:22]} b5 {[%emt 0:00:17]} 10. Nd5 {[%emt 0:01:55]} Be7 {[%emt 0:00:15]} 11. Bxf6 {[%emt 0:01:13]} Bxf6 {[%emt 0:00:02]} 12. c4 {[%emt 0:02:50]} b4 {[%emt 0:05:13]} 13. Nc2 {[%emt 0:01:45]} a5 {[%emt 0:05:13]} 14. g3 {[%emt 0:03:49]} Ba6 {[%emt 0:06:13]} 15. b3 {[%emt 0:12:28]} O-O {[%emt 0:04:51]} 16. Bg2 {[%emt 0:05:10]} Bg5 {[%emt 0:12:46]} 17. O-O {[%emt 0:02:17]} Ne7 {[%emt 0:03:33]} 18. Nce3 {[%emt 0:01:50]} Bxe3 {[%emt 0:02:51]} 19. Nxe3 {[%emt 0:03:00]} Nc6 {[%emt 0:06:48]} 20. Nf5 {[%emt 0:03:36]} g6 {[%emt 0:01:24]} 21. Qxd6 {[%emt 0:03:03]} Qxd6 {[%emt 0:01:28]} 22. Nxd6 {[%emt 0:00:02]} Nd4 {[%emt 0:01:46]} 23. f4 {[%emt 0:01:41]} f6 {[%emt 0:02:45]} 24. Rf2 Rfd8 {[%emt 0:03:51]} 25. fxe5 {[%emt 0:03:59]} fxe5 {[%emt 0:02:34]} 26. Nf7 {[%emt 0:00:30]} Re8 27. Rd1 {[%emt 0:02:37]} a4 {[%emt 0:23:00]} 28. Nxe5 {[%emt 0:10:42]} Nxb3 {[%emt 0:00:26]} 29. Nd7 {[%emt 0:01:23]} Bxc4 {[%emt 0:07:33]} 30. axb3 {[%emt 0:04:23]} Bxb3 {[%emt 0:00:37]} 31. Nf6+ {[%emt 0:00:24]} Kf7 {[%emt 0:00:35]} 32. Nxe8+ {[%emt 0:00:46]} Kxe8 {[%emt 0:00:02]} 33. Rb1 {[%emt 0:00:32]} Rb8 {[%emt 0:03:38]} 34. Rfb2 {[%emt 0:00:30]} Ke7 {[%emt 0:00:14]} 35. Kf2 {[%emt 0:00:39]} Kd6 {[%emt 0:00:07]} 36. Ke3 {[%emt 0:00:12]} Kc5 {[%emt 0:00:07]} 37. Rc1+ {[%emt 0:01:13]} Kb5 {[%emt 0:00:04]} 38. Bf1+ {[%emt 0:00:06]} Kb6 {[%emt 0:01:36]} 39. Rc4 {[%emt 0:03:08]} Rf8 {[%emt 0:01:35]} 40. Rxb4+ {[%emt 0:00:37]} Kc5 {[%emt 0:00:09]} 41. Rb5+ {[%emt 0:00:16]} 1-0

[Event "Portuguese-ch U14-20 2022"]
[Site "Fatima"]
[Date "2022.04.10"]
[Round "1.12"]
[White "Duque, Raquel Dos Santos"]
[Black "Pipiras, Filipa Fortuna"]
[Result "0-1"]
[ECO "A17"]
[WhiteElo "1510"]
[BlackElo "2000"]
[Annotator "RC"]
[PlyCount "64"]
[EventDate "2022.04.10"]
[EventType "swiss"]
[EventCountry "POR"]
[SourceTitle "playchess.com"]
[Source "ChessBase"]
[SourceQuality "1"]
[TimeControl "5400+30"]

1. c4 Nf6 2. Nc3 e6 3. g3 d5 4. cxd5 exd5 5. Bg2 c6 6. d4 Bd6 7. Nf3 O-O 8. O-O Re8 9. a3 Nbd7 10. b4 b5 11. Nd2 a5 12. bxa5 Qxa5 13. Qc2 b4 14. Nb3 Qb6 15. axb4 Rxa1 16. Nxa1 Qxd4 17. b5 Nb6 18. Be3 Rxe3 19. fxe3 Qxe3+ 20. Kh1 Ng4 21. Nd1 Qh6 22. h3 Nc4 23. Nb3 c5 24. Qa2 Nge3 25. Qa8 Nb6 26. Qc6 Nxf1 27. Bxf1 Bxh3 28. Bxh3 Qxh3+ 29. Kg1 Qxg3+ 30. Kf1 Nc4 31. b6 Qh3+ 32. Kf2 Bg3+ 0-1

[Event "Portuguese-ch U14-20 2022"]
[Site "Fatima"]
[Date "2022.04.10"]
[Round "1.13"]
[White "Gomes, Estevao Manuel"]
[Black "Asseiceiro, Lucas Teixeira"]
[Result "1-0"]
[ECO "C78"]
[WhiteElo "2047"]
[BlackElo "1580"]
[Annotator "NA RC"]
[PlyCount "65"]
[EventDate "2022.04.10"]
[EventType "swiss"]
[EventCountry "POR"]
[SourceTitle "playchess.com"]
[Source "ChessBase"]
[SourceQuality "1"]
[TimeControl "5400+30"]

1. e4 {[%emt 0:00:08]} e5 {[%emt 0:00:39]} 2. Nf3 {[%emt 0:00:09]} Nc6 {[%emt 0:00:12]} 3. Bb5 {[%emt 0:00:04]} a6 {[%emt 0:00:21]} 4. Ba4 {[%emt 0:00:05]} Nf6 {[%emt 0:00:18]} 5. O-O {[%emt 0:00:11]} b5 {[%emt 0:01:02]} 6. Bb3 {[%emt 0:00:05]} d6 {[%emt 0:00:13] Recently 6...Bc5 got a lot of attention.} 7. Re1 {[%emt 0:00:10]} Bg4 {[%emt 0:01:13]} 8. c3 {[%emt 0:00:26]} Na5 {[%emt 0:00:28]} 9. Bc2 {[%emt 0:00:09]} c5 {[%emt 0:00:22]} 10. h3 {[%emt 0:04:04]} Bh5 {[%emt 0:00:10]} 11. d3 {[%emt 0:14:01]} Nc6 {[%emt 0:02:17]} 12. Nbd2 {[%emt 0:00:10]} Be7 {[%emt 0:01:46]} 13. Nf1 {[%emt 0:00:19]} h6 {[%emt 0:11:24]} 14. Ng3 {[%emt 0:00:17]} Bg6 {[%emt 0:00:53]} 15. Nh4 {[%emt 0:05:01]} Bh7 {[%emt 0:06:43]} 16. Nhf5 {[%emt 0:00:17]} O-O {[%emt 0:02:50]} 17. a4 {[%emt 0:04:29] [#]} Rb8 $146 {[%emt 0:04:39]} ({Black should try} 17... Bg6 $14) ({Predecessor:} 17... Qc7 18. Bb3 Na5 19. Bd5 Nxd5 20. exd5 Bg6 21. b4 Nb7 22. Qg4 cxb4 23. cxb4 Rfc8 24. axb5 axb5 25. Bxh6 gxh6 {1-0 (33) Chekmasov,S (2357)-Opitz,P (2087) ICCF email 2011}) 18. axb5 {[%emt 0:01:13]} axb5 {[%emt 0:00:13]} 19. d4 {[%emt 0:09:54]} ({Better is} 19. Bb3 $16) 19... cxd4 {[%emt 0:08:11]} (19... exd4 $14 {feels stronger.} 20. Bf4 (20. cxd4 Nxd4 21. Nxd4 cxd4 $14) 20... dxc3) 20. cxd4 {[%emt 0:00:14]} (20. Bb3 $14 {deserves consideration.}) 20... exd4 {[%emt 0:03:26]} 21. Nxd4 {[%emt 0:00:10]} Nxd4 {[%emt 0:02:53]} 22. Qxd4 {[%emt 0:00:06]} Qc7 {[%emt 0:05:13]} ({Black should try} 22... d5 $11) 23. Bb3 {[%emt 0:02:12]} Ra8 {[%emt 0:05:57]} 24. Be3 {[%emt 0:08:20]} Nd7 {[%emt 0:06:26]} 25. Bxf7+ {[%emt 0:02:36]} Kh8 $18 {[%emt 0:02:11]} 26. Bd5 {[%emt 0:09:59]} Rxa1 {[%emt 0:03:27]} 27. Rxa1 {[%emt 0:00:11]} Nc5 {[%emt 0:03:02]} 28. Nh5 {[%emt 0:01:46]} Bf6 {[%emt 0:06:34]} 29. Nxf6 {[%emt 0:00:10]} Rxf6 {[%emt 0:01:52]} 30. Ra8+ {[%emt 0:00:07]} Bg8 {[%emt 0:01:22]} 31. Bxg8 {[%emt 0:01:49]} Nb7 {[%emt 0:00:46]} 32. Bd5+ {[%emt 0:01:49]} Nd8 {[%emt 0:00:19]} 33. Qb6 {[%emt 0:00:16]} 1-0

[Event "Portuguese-ch U14-20 2022"]
[Site "Fatima"]
[Date "2022.04.10"]
[Round "1.14"]
[White "Monteiro, Simao Costa"]
[Black "Ribeiro, Rodrigo"]
[Result "0-1"]
[ECO "B22"]
[WhiteElo "1346"]
[BlackElo "1866"]
[Annotator "NA RC"]
[PlyCount "40"]
[EventDate "2022.04.10"]
[EventType "swiss"]
[EventCountry "POR"]
[SourceTitle "playchess.com"]
[Source "ChessBase"]
[SourceQuality "1"]
[TimeControl "5400+30"]

1. e4 {[%emt 0:00:02]} c5 {[%emt 0:00:03]} 2. c3 {[%emt 0:00:08]} d5 {[%emt 0:00:10]} 3. exd5 {[%emt 0:00:08]} Qxd5 {[%emt 0:00:04]} 4. d4 {[%emt 0:00:13]} cxd4 {[%emt 0:09:34]} 5. cxd4 {[%emt 0:00:09]} Nc6 {[%emt 0:00:12]} 6. Nf3 {[%emt 0:06:52]} e6 {[%emt 0:22:58]} 7. Nc3 {[%emt 0:02:44]} Qd8 {[%emt 0:00:41]} 8. Bc4 {[%emt 0:09:28]} Nf6 {[%emt 0:01:43]} 9. O-O {[%emt 0:00:31]} Be7 {[%emt 0:00:53]} 10. Bf4 {[%emt 0:05:37]} a6 {[%emt 0:05:43]} 11. Re1 $11 {[%emt 0:25:09]} b5 {[%emt 0:23:45]} 12. Bb3 Na5 {[%emt 0:00:30]} 13. Rc1 {[%emt 0:19:27]} Nxb3 {[%emt 0:00:30]} 14. Qxb3 {[%emt 0:00:13]} Bb7 {[%emt 0:07:12]} 15. Nxb5 {[%emt 0:10:51]} axb5 {[%emt 0:00:39]} 16. Qxb5+ {[%emt 0:00:24]} Qd7 {[%emt 0:00:07]} 17. Qxd7+ {[%emt 0:03:12]} Nxd7 {[%emt 0:00:09]} 18. Rc7 {[%emt 0:02:06]} Bxf3 {[%emt 0:01:48]} 19. gxf3 {[%emt 0:00:16]} Nb6 {[%emt 0:00:09]} 20. a3 {[%emt 0:08:36]} Nd5 {[%emt 0:00:28]} 0-1

[Event "Portuguese-ch U14-20 2022"]
[Site "Fatima"]
[Date "2022.04.10"]
[Round "1.15"]
[White "Pina, Tiago"]
[Black "Tejo, Joao Jorge De Medeir"]
[Result "1-0"]
[ECO "A41"]
[WhiteElo "1938"]
[BlackElo "1844"]
[Annotator "RC"]
[PlyCount "97"]
[EventDate "2022.04.10"]
[EventType "swiss"]
[EventCountry "POR"]
[SourceTitle "playchess.com"]
[Source "ChessBase"]
[SourceQuality "1"]
[TimeControl "5400+30"]

1. d4 {[%emt 0:00:03]} d6 {[%emt 0:00:09]} 2. c4 {[%emt 0:00:13]} e5 {[%emt 0:00:07]} 3. e3 {[%emt 0:00:29]} Nc6 {[%emt 0:06:12]} 4. Nc3 {[%emt 0:00:30]} Nf6 {[%emt 0:01:14]} 5. Nf3 {[%emt 0:01:37]} Bg4 {[%emt 0:07:18]} 6. d5 {[%emt 0:01:30]} Ne7 {[%emt 0:02:53]} 7. Qb3 {[%emt 0:01:11]} b6 {[%emt 0:05:30]} 8. e4 {[%emt 0:03:54]} g6 {[%emt 0:02:00]} 9. Be3 {[%emt 0:04:28]} Bg7 {[%emt 0:01:16]} 10. Nd2 {[%emt 0:02:46]} O-O {[%emt 0:00:27]} 11. Qc2 {[%emt 0:00:57]} Re8 {[%emt 0:02:51]} 12. Bd3 {[%emt 0:00:46]} Bd7 {[%emt 0:08:45]} 13. f3 {[%emt 0:05:00]} Nc8 {[%emt 0:11:27]} 14. g4 {[%emt 0:07:48]} a6 {[%emt 0:10:34]} 15. O-O-O {[%emt 0:02:33]} Na7 {[%emt 0:02:38]} 16. h4 {[%emt 0:02:49]} b5 {[%emt 0:12:54]} 17. Kb1 {[%emt 0:07:30]} b4 {[%emt 0:00:58]} 18. Ne2 {[%emt 0:00:52]} a5 {[%emt 0:01:35]} 19. h5 {[%emt 0:02:46]} Qe7 {[%emt 0:04:26]} 20. Ng3 {[%emt 0:07:45]} Reb8 {[%emt 0:00:55]} 21. g5 {[%emt 0:15:54]} Ne8 {[%emt 0:00:22]} 22. Nf5 {[%emt 0:00:43]} Qd8 {[%emt 0:03:54]} 23. hxg6 {[%emt 0:01:12]} fxg6 {[%emt 0:00:29]} 24. Nh6+ {[%emt 0:03:08]} Bxh6 {[%emt 0:00:38]} 25. Rxh6 {[%emt 0:00:22]} Ng7 {[%emt 0:00:08]} 26. f4 {[%emt 0:02:54]} exf4 {[%emt 0:01:32]} 27. Bxf4 {[%emt 0:00:36]} Bg4 {[%emt 0:01:14]} 28. Rg1 {[%emt 0:02:33]} Bh5 {[%emt 0:00:31]} 29. e5 {[%emt 0:00:40]} dxe5 {[%emt 0:04:19]} 30. Bxe5 {[%emt 0:00:33]} Nc8 {[%emt 0:00:25]} 31. Ne4 {[%emt 0:01:48]} Ne8 {[%emt 0:03:53]} 32. Nf6+ {[%emt 0:08:05]} Nxf6 {[%emt 0:00:42]} 33. Bxf6 {[%emt 0:00:02]} Qe8 {[%emt 0:03:56]} 34. Rxh5 {[%emt 0:02:48]} gxh5 {[%emt 0:00:41]} 35. Bxh7+ {[%emt 0:00:56]} Kf8 {[%emt 0:00:19]} 36. g6 {[%emt 0:02:20]} Ne7 {[%emt 0:00:44]} 37. g7+ {[%emt 0:00:43]} Kf7 {[%emt 0:00:05]} 38. Bxe7 {[%emt 0:00:09]} Kxe7 {[%emt 0:00:20]} 39. Re1+ {[%emt 0:00:09]} Kd7 {[%emt 0:00:23]} 40. Qf5+ {[%emt 0:00:23]} Kd6 {[%emt 0:00:20]} 41. Rxe8 {[%emt 0:01:43]} Rxe8 {[%emt 0:00:07]} 42. Qg6+ {[%emt 0:00:09]} Kc5 {[%emt 0:00:14]} 43. g8=Q {[%emt 0:00:17]} Rxg8 {[%emt 0:00:23]} 44. Bxg8 {[%emt 0:00:07]} Rf8 {[%emt 0:00:25]} 45. d6 {[%emt 0:00:33]} cxd6 {[%emt 0:00:59]} 46. Qxh5+ {[%emt 0:00:10]} Kc6 {[%emt 0:00:17]} 47. Qb5+ {[%emt 0:00:17]} Kc7 {[%emt 0:00:15]} 48. Qxa5+ {[%emt 0:00:18]} Kd7 {[%emt 0:00:27]} 49. Bd5 {[%emt 0:00:14]} 1-0

[Event "Portuguese-ch U14-20 2022"]
[Site "Fatima"]
[Date "2022.04.10"]
[Round "1.16"]
[White "Rodrigues, Jose Pedro Da Costa"]
[Black "Abdurramane, Danial Germano"]
[Result "0-1"]
[ECO "D92"]
[WhiteElo "1533"]
[BlackElo "1772"]
[Annotator "NA RC"]
[PlyCount "66"]
[EventDate "2022.04.10"]
[EventType "swiss"]
[EventCountry "POR"]
[SourceTitle "playchess.com"]
[Source "ChessBase"]
[SourceQuality "1"]
[TimeControl "5400+30"]

1. d4 Nf6 2. Bf4 g6 3. Nf3 Bg7 4. c4 d5 5. Nc3 O-O 6. Be5 c6 7. Bxf6 Bxf6 8. e3 b6 9. g3 e6 10. Bg2 Ba6 11. b3 dxc4 12. b4 Nd7 13. Nd2 Qc7 14. Qa4 Bb7 15. Nxc4 a5 16. Qb3 axb4 17. Ne4 Be7 18. O-O c5 19. Rfd1 b5 20. dxc5 bxc4 21. Qxc4 Nxc5 22. Rac1 Bxe4 23. Bxe4 Rab8 24. h4 Qa5 25. Bb1 Na4 26. Rd4 Nc3 27. Bc2 Rfc8 28. Qd3 Qxa2 29. h5 b3 30. hxg6 hxg6 31. Bb1 Ne2+ 32. Kg2 Nxc1 33. Qe4 Qa8 0-1

[Event "Portuguese-ch U14-20 2022"]
[Site "Fatima"]
[Date "2022.04.10"]
[Round "1.17"]
[White "Goncalves, Samuel Jesus P"]
[Black "Oliveira, Maria Elisa Ramos Ma"]
[Result "1-0"]
[ECO "C11"]
[WhiteElo "1807"]
[BlackElo "1316"]
[Annotator "NA RC"]
[PlyCount "62"]
[EventDate "2022.04.10"]
[EventType "swiss"]
[EventCountry "POR"]
[SourceTitle "playchess.com"]
[Source "ChessBase"]
[SourceQuality "1"]
[TimeControl "5400+30"]

1. e4 {[%emt 0:00:44]} e6 {[%emt 0:00:11]} 2. d4 {[%emt 0:00:30]} d5 {[%emt 0:00:10]} 3. Nc3 {[%emt 0:00:17]} Nf6 {[%emt 0:00:16]} 4. Bg5 {[%emt 0:00:11]} dxe4 {[%emt 0:00:32]} 5. Nxe4 {[%emt 0:00:59]} Be7 {[%emt 0:05:31]} 6. Bxf6 {[%emt 0:00:16]} Bxf6 {[%emt 0:00:11]} 7. c3 {[%emt 0:06:37]} Nd7 {[%emt 0:13:29]} 8. g3 {[%emt 0:07:20]} O-O {[%emt 0:08:19]} 9. Bg2 {[%emt 0:00:29]} Nb6 {[%emt 0:09:16]} 10. Nf3 {[%emt 0:05:37]} Bd7 {[%emt 0:05:18]} 11. Nxf6+ {[%emt 0:00:36]} Qxf6 {[%emt 0:00:10]} 12. Ne5 {[%emt 0:00:02]} c6 {[%emt 0:03:33]} 13. a4 {[%emt 0:04:51]} Qe7 {[%emt 0:03:25]} 14. a5 {[%emt 0:02:31]} Nd5 {[%emt 0:02:43]} 15. O-O {[%emt 0:01:48]} Rfd8 $14 {[%emt 0:04:58]} 16. Qb3 {[%emt 0:03:28]} Rab8 {[%emt 0:03:06]} 17. c4 {[%emt 0:03:57]} Nf6 {[%emt 0:07:06]} 18. Rfe1 {[%emt 0:04:05]} Be8 {[%emt 0:08:35]} 19. Qc3 {[%emt 0:02:52]} Qc7 {[%emt 0:02:54]} 20. b4 {[%emt 0:00:41]} Nd7 {[%emt 0:01:51]} 21. Ng4 {[%emt 0:06:28]} Nf8 {[%emt 0:03:30]} 22. h4 {[%emt 0:01:34]} h6 {[%emt 0:01:47]} 23. c5 {[%emt 0:02:20]} Ng6 {[%emt 0:01:30]} 24. Ne3 {[%emt 0:14:51]} Bd7 {[%emt 0:03:24]} 25. Nc4 {[%emt 0:00:34]} Ne7 {[%emt 0:00:52]} 26. Nd6 {[%emt 0:00:30]} Nf5 {[%emt 0:01:14]} 27. Nc4 {[%emt 0:08:04]} Be8 {[%emt 0:02:20]} 28. Rad1 {[%emt 0:00:11]} Rd7 {[%emt 0:01:17]} 29. Ne5 {[%emt 0:01:20]} Rdd8 {[%emt 0:00:06]} 30. Be4 {[%emt 0:00:55]} Nxd4 {[%emt 0:01:54]} 31. Rxd4 {[%emt 0:00:04]} Qxe5 {[%emt 0:00:08]} 1-0

[Event "Portuguese-ch U14-20 2022"]
[Site "Fatima"]
[Date "2022.04.10"]
[Round "1.18"]
[White "Bernardo, Beatriz Nunes"]
[Black "Sousa, Ricardo Miguel Morai"]
[Result "0-1"]
[ECO "B17"]
[WhiteElo "1144"]
[BlackElo "2077"]
[Annotator "RC"]
[PlyCount "30"]
[EventDate "2022.04.10"]
[EventType "swiss"]
[EventCountry "POR"]
[SourceTitle "playchess.com"]
[Source "ChessBase"]
[SourceQuality "1"]
[TimeControl "5400+30"]

1. e4 {[%emt 0:00:07]} c6 {[%emt 0:00:14]} 2. Nc3 {[%emt 0:02:07]} d5 {[%emt 0:00:15]} 3. d4 {[%emt 0:00:22]} dxe4 {[%emt 0:00:11]} 4. Nxe4 {[%emt 0:00:13]} Nd7 {[%emt 0:00:39]} 5. Nf3 {[%emt 0:00:32]} Ngf6 {[%emt 0:00:07]} 6. Nc3 {[%emt 0:05:09]} e6 {[%emt 0:01:07]} 7. Be3 {[%emt 0:09:46]} Bd6 {[%emt 0:08:36]} 8. Qd2 {[%emt 0:06:42]} O-O {[%emt 0:02:15]} 9. O-O-O {[%emt 0:00:42]} Qa5 {[%emt 0:04:15]} 10. Bc4 {[%emt 0:06:23]} b5 {[%emt 0:12:02]} 11. Bb3 {[%emt 0:07:18]} Bb4 {[%emt 0:00:53]} 12. Bg5 {[%emt 0:07:46]} Ne4 {[%emt 0:03:25]} 13. Qe1 {[%emt 0:01:44]} Nxc3 {[%emt 0:00:27]} 14. bxc3 {[%emt 0:00:19]} Bxc3 {[%emt 0:00:19]} 15. Bd2 {[%emt 0:00:35]} Qa3+ {[%emt 0:00:10]} 0-1

[Event "Portuguese-ch U14-20 2022"]
[Site "Fatima"]
[Date "2022.04.10"]
[Round "1.20"]
[White "Ferreira, Tiago Filipe Quiteri"]
[Black "Vidal Torres, Ricardo"]
[Result "0-1"]
[ECO "D02"]
[WhiteElo "1699"]
[BlackElo "2332"]
[Annotator "RC"]
[PlyCount "50"]
[EventDate "2022.04.10"]
[EventType "swiss"]
[EventCountry "POR"]
[SourceTitle "playchess.com"]
[Source "ChessBase"]
[SourceQuality "1"]
[TimeControl "5400+30"]

1. d4 {[%emt 0:00:03]} d5 {[%emt 0:00:20]} 2. Nf3 {[%emt 0:00:12]} Nf6 {[%emt 0:00:16]} 3. Bf4 {[%emt 0:00:30]} e6 {[%emt 0:00:52]} 4. e3 {[%emt 0:00:24]} Bd6 {[%emt 0:01:34]} 5. Bg3 {[%emt 0:00:31]} O-O {[%emt 0:01:27]} 6. Bd3 {[%emt 0:00:35]} Nbd7 {[%emt 0:01:57]} 7. Qe2 {[%emt 0:03:57]} Qe7 {[%emt 0:03:02]} 8. e4 {[%emt 0:05:48]} dxe4 {[%emt 0:00:46]} 9. Bxe4 {[%emt 0:00:19]} Nxe4 {[%emt 0:00:17]} 10. Qxe4 {[%emt 0:00:16]} Nf6 {[%emt 0:04:02]} 11. Qd3 {[%emt 0:02:18]} Nd5 {[%emt 0:06:13]} 12. O-O {[%emt 0:02:58]} c5 {[%emt 0:03:49]} 13. Bxd6 {[%emt 0:02:42]} Qxd6 {[%emt 0:00:04]} 14. c3 {[%emt 0:02:17]} b6 {[%emt 0:04:09]} 15. Nbd2 {[%emt 0:07:41]} cxd4 {[%emt 0:06:52]} 16. Qxd4 {[%emt 0:03:13]} Qe7 {[%emt 0:04:28]} 17. Rfe1 {[%emt 0:03:41]} Bb7 {[%emt 0:02:07]} 18. a3 {[%emt 0:08:46]} Rfd8 {[%emt 0:04:22]} 19. Rad1 {[%emt 0:08:48]} Rac8 {[%emt 0:04:33]} 20. Qh4 {[%emt 0:08:08]} Qxh4 {[%emt 0:01:17]} 21. Nxh4 {[%emt 0:00:14]} Nf4 {[%emt 0:00:37]} 22. Nhf3 {[%emt 0:03:50]} Nd3 {[%emt 0:00:58]} 23. b4 {[%emt 0:03:58]} Nxe1 {[%emt 0:00:34]} 24. Rxe1 {[%emt 0:00:20]} Bxf3 {[%emt 0:00:17]} 25. Nxf3 {[%emt 0:00:20]} Rxc3 {[%emt 0:00:08]} 0-1